[Event "IMSA Rapid Women 2019"]
[Site "Hengshui"]
[Date "2019.05.14"]
[Round "4.10"]
[White "Gunina, Valentina"]
[Black "Kosteniuk, Alexandra"]
[Result "1-0"]
[ECO "C27"]
[WhiteElo "2506"]
[BlackElo "2546"]
[Annotator "RC"]
[PlyCount "109"]
[EventDate "2019.05.14"]
[EventType "rapid"]
[EventCountry "CHN"]
[SourceTitle "playchess.com"]
[Source "ChessBase"]
[SourceQuality "1"]
[TimeControl "900+10"]

1. e4 {[%emt 0:00:00]} e5 {[%emt 0:00:00]} 2. Bc4 {[%emt 0:00:00]} Nf6 {[%emt 0:00:00]} 3. Nf3 {[%emt 0:00:00]} Nxe4 {[%emt 0:00:36]} 4. Nc3 {[%emt 0:00:04]} Nf6 {[%emt 0:00:21]} 5. Nxe5 {[%emt 0:01:34]} d5 {[%emt 0:00:04]} 6. Bb3 {[%emt 0:00:14]} Be7 {[%emt 0:01:48]} 7. d4 {[%emt 0:00:11]} O-O {[%emt 0:00:05]} 8. O-O {[%emt 0:00:03]} c6 {[%emt 0:00:01]} 9. f4 {[%emt 0:00:36]} c5 {[%emt 0:03:23]} 10. dxc5 {[%emt 0:00:18]} Bxc5+ {[%emt 0:00:06]} 11. Kh1 {[%emt 0:00:02]} d4 {[%emt 0:00:06]} 12. Na4 {[%emt 0:01:48]} Be7 {[%emt 0:00:08]} 13. Qf3 {[%emt 0:00:15]} Nc6 {[%emt 0:00:16]} 14. c3 {[%emt 0:01:15]} Bf5 {[%emt 0:00:25]} 15. Nxc6 {[%emt 0:00:49]} bxc6 {[%emt 0:00:01]} 16. cxd4 {[%emt 0:00:08]} Qxd4 {[%emt 0:00:07]} 17. Be3 {[%emt 0:00:26]} Qb4 {[%emt 0:00:52]} 18. Rac1 {[%emt 0:00:41]} Be4 {[%emt 0:01:47]} 19. Qg3 {[%emt 0:00:55]} Bd5 {[%emt 0:00:46]} 20. Nc5 {[%emt 0:02:17]} Ne4 {[%emt 0:00:49]} 21. Nxe4 {[%emt 0:00:12]} Qxe4 {[%emt 0:00:59]} 22. Bxd5 {[%emt 0:00:14]} Qxd5 {[%emt 0:00:23]} 23. b3 {[%emt 0:00:03]} Rfd8 {[%emt 0:00:05]} 24. h3 {[%emt 0:00:16]} h5 {[%emt 0:00:07]} 25. f5 {[%emt 0:00:36]} Bf6 {[%emt 0:00:19]} 26. Bg5 {[%emt 0:00:33]} Rd6 {[%emt 0:00:28]} 27. Bxf6 {[%emt 0:00:49]} Rxf6 {[%emt 0:00:01]} 28. Qg5 {[%emt 0:00:01]} Re8 {[%emt 0:00:47]} 29. Qxh5 {[%emt 0:00:45]} Qd2 {[%emt 0:01:25]} 30. a4 {[%emt 0:01:05]} Qd3 {[%emt 0:00:14]} 31. Rf3 {[%emt 0:00:29]} Qd2 {[%emt 0:00:11]} 32. Rcf1 {[%emt 0:00:30]} Re4 {[%emt 0:00:57]} 33. R3f2 {[%emt 0:00:14]} Qc3 {[%emt 0:00:07]} 34. Qg5 {[%emt 0:01:12]} Qxb3 {[%emt 0:01:07]} 35. Rf3 {[%emt 0:00:02]} Qc4 {[%emt 0:00:51]} 36. Kh2 {[%emt 0:00:21]} Kf8 {[%emt 0:00:23]} 37. Rd1 {[%emt 0:00:17]} Rd4 {[%emt 0:00:03]} 38. Rc1 {[%emt 0:00:35]} Qd5 {[%emt 0:00:01]} 39. Rg3 {[%emt 0:00:01]} Rxf5 {[%emt 0:00:09]} 40. Qxg7+ {[%emt 0:00:02]} Ke7 {[%emt 0:00:00]} 41. Rxc6 {[%emt 0:00:09]} Qxc6 {[%emt 0:00:12]} 42. Qxd4 {[%emt 0:00:02]} Qc7 {[%emt 0:00:13]} 43. Qe4+ {[%emt 0:00:20]} Kf6 {[%emt 0:00:12]} 44. Qh4+ {[%emt 0:00:11]} Ke6 {[%emt 0:00:02]} 45. Qh6+ {[%emt 0:00:21]} f6 {[%emt 0:00:36]} 46. h4 {[%emt 0:00:31]} Qf4 {[%emt 0:00:17]} 47. Qh8 {[%emt 0:00:15]} Re5 {[%emt 0:00:09]} 48. Qc8+ {[%emt 0:00:38]} Kd6 {[%emt 0:00:12]} 49. Kh3 {[%emt 0:00:09]} Qf1 {[%emt 0:00:09]} 50. Qb8+ {[%emt 0:00:14]} Ke6 {[%emt 0:00:04]} 51. Qb3+ {[%emt 0:00:04]} Rd5 {[%emt 0:00:31]} 52. Re3+ {[%emt 0:00:05]} Kd6 {[%emt 0:00:01]} 53. Qb8+ {[%emt 0:00:02]} Kc6 {[%emt 0:00:30]} 54. Qc8+ {[%emt 0:00:20]} Kb6 {[%emt 0:00:13]} 55. Rb3+ {[%emt 0:00:01]} 1-0

[Event "IMSA Rapid Women 2019"]
[Site "Hengshui"]
[Date "2019.05.15"]
[Round "5.10"]
[White "Gunina, Valentina"]
[Black "Abdumalik, Zhansaya"]
[Result "1/2-1/2"]
[ECO "E94"]
[WhiteElo "2506"]
[BlackElo "2464"]
[Annotator "RC"]
[PlyCount "143"]
[EventDate "2019.05.14"]
[EventType "rapid"]
[EventCountry "CHN"]
[SourceTitle "playchess.com"]
[Source "ChessBase"]
[SourceQuality "1"]
[TimeControl "900+10"]

1. d4 {[%emt 0:00:00]} Nf6 {[%emt 0:00:00]} 2. c4 {[%emt 0:00:00]} g6 {[%emt 0:00:00]} 3. Nc3 {[%emt 0:00:00]} d6 {[%emt 0:00:22]} 4. e4 {[%emt 0:00:15]} Nbd7 {[%emt 0:00:32]} 5. Nf3 {[%emt 0:00:19]} e5 {[%emt 0:00:03]} 6. Be2 {[%emt 0:00:07]} Bg7 {[%emt 0:00:02]} 7. O-O {[%emt 0:00:03]} O-O {[%emt 0:00:07]} 8. Qc2 {[%emt 0:00:30]} exd4 {[%emt 0:00:33]} 9. Nxd4 {[%emt 0:00:02]} Re8 {[%emt 0:00:18]} 10. Be3 {[%emt 0:00:27]} c6 {[%emt 0:00:14]} 11. Rad1 {[%emt 0:00:14]} Qe7 {[%emt 0:00:08]} 12. f3 {[%emt 0:00:24]} a5 {[%emt 0:00:49]} 13. Rfe1 {[%emt 0:00:23]} Nc5 {[%emt 0:00:23]} 14. Bf1 {[%emt 0:00:05]} Nh5 {[%emt 0:00:38]} 15. g3 {[%emt 0:00:17]} Nf6 {[%emt 0:00:41]} 16. Bg2 {[%emt 0:00:03]} h5 {[%emt 0:00:20]} 17. Bg5 {[%emt 0:01:10]} Qf8 {[%emt 0:00:05]} 18. Qd2 {[%emt 0:00:34]} Nh7 {[%emt 0:00:47]} 19. Be3 {[%emt 0:00:14]} a4 {[%emt 0:01:04]} 20. h3 {[%emt 0:00:09]} Be6 {[%emt 0:02:14]} 21. Nxe6 {[%emt 0:00:32]} Nxe6 {[%emt 0:00:13]} 22. f4 {[%emt 0:00:07]} Qe7 {[%emt 0:00:32]} 23. Qxd6 {[%emt 0:00:59]} Qxd6 {[%emt 0:00:06]} 24. Rxd6 {[%emt 0:00:02]} a3 {[%emt 0:00:01]} 25. Bc1 {[%emt 0:01:23]} h4 {[%emt 0:00:44]} 26. f5 {[%emt 0:05:15]} gxf5 {[%emt 0:00:19]} 27. exf5 {[%emt 0:01:22]} Nd4 {[%emt 0:01:27]} 28. Rf1 {[%emt 0:01:49]} axb2 {[%emt 0:01:05]} 29. Bxb2 {[%emt 0:00:02]} Ne2+ {[%emt 0:01:38]} 30. Nxe2 {[%emt 0:00:04]} Bxb2 {[%emt 0:00:00]} 31. Rd2 {[%emt 0:00:42]} Bf6 {[%emt 0:00:06]} 32. gxh4 {[%emt 0:00:09]} Bxh4 {[%emt 0:00:02]} 33. Nf4 {[%emt 0:01:11]} Nf6 {[%emt 0:00:31]} 34. Rb2 {[%emt 0:00:38]} Re7 {[%emt 0:00:31]} 35. Nd3 {[%emt 0:00:35]} Ra3 {[%emt 0:01:18]} 36. Nc5 {[%emt 0:00:07]} b5 {[%emt 0:00:11]} 37. cxb5 {[%emt 0:00:05]} cxb5 {[%emt 0:00:01]} 38. Nb3 {[%emt 0:00:18]} Rea7 {[%emt 0:00:48]} 39. Rf4 {[%emt 0:00:07]} Bg5 {[%emt 0:00:08]} 40. Rf3 {[%emt 0:00:01]} Kh7 {[%emt 0:00:18]} 41. h4 {[%emt 0:00:43]} Bh6 {[%emt 0:00:01]} 42. Bf1 {[%emt 0:00:09]} Rxa2 {[%emt 0:01:11]} 43. Rxa2 {[%emt 0:00:02]} Rxa2 {[%emt 0:00:01]} 44. Bxb5 {[%emt 0:00:01]} Ng4 {[%emt 0:00:19]} 45. Rc3 {[%emt 0:00:24]} Rb2 {[%emt 0:00:46]} 46. f6 {[%emt 0:00:23]} Nxf6 {[%emt 0:00:13]} 47. Nd4 {[%emt 0:00:07]} Rb1+ {[%emt 0:00:47]} 48. Kg2 {[%emt 0:00:02]} Rc1 {[%emt 0:00:02]} 49. Bd3+ {[%emt 0:00:04]} Kg8 {[%emt 0:00:02]} 50. Rb3 {[%emt 0:00:08]} Rc8 {[%emt 0:00:06]} 51. Nf5 {[%emt 0:00:05]} Bf8 {[%emt 0:00:01]} 52. Kf3 {[%emt 0:00:14]} Rd8 {[%emt 0:00:09]} 53. Bc4 {[%emt 0:00:02]} Rc8 {[%emt 0:00:08]} 54. Bd3 {[%emt 0:00:15]} Rd8 {[%emt 0:00:01]} 55. Ba6 {[%emt 0:00:19]} Nd7 {[%emt 0:00:12]} 56. Kf4 {[%emt 0:00:15]} Nc5 {[%emt 0:00:10]} 57. Rg3+ {[%emt 0:00:01]} Kh7 {[%emt 0:00:08]} 58. Bc4 {[%emt 0:00:03]} Ne6+ {[%emt 0:00:03]} 59. Ke5 {[%emt 0:00:05]} Nd4 {[%emt 0:00:47]} 60. Bxf7 {[%emt 0:00:23]} Nxf5 {[%emt 0:00:01]} 61. Kxf5 {[%emt 0:00:01]} Bg7 {[%emt 0:00:11]} 62. Rb3 {[%emt 0:00:14]} Rd6 {[%emt 0:00:07]} 63. Rb7 {[%emt 0:00:14]} Kh6 {[%emt 0:00:03]} 64. Be6 {[%emt 0:00:16]} Rd2 {[%emt 0:00:12]} 65. Rb6 {[%emt 0:00:05]} Rf2+ {[%emt 0:00:10]} 66. Kg4 {[%emt 0:00:05]} Rf6 {[%emt 0:00:02]} 67. Rc6 {[%emt 0:00:04]} Bh8 {[%emt 0:00:05]} 68. h5 {[%emt 0:00:05]} Bg7 {[%emt 0:00:00]} 69. Ra6 {[%emt 0:00:02]} Bh8 {[%emt 0:00:00]} 70. Rc6 {[%emt 0:00:01]} Bg7 {[%emt 0:00:00]} 71. Ra6 {[%emt 0:00:01]} Bh8 {[%emt 0:00:00]} 72. Rc6 1/2-1/2

[Event "IMSA Rapid Women 2019"]
[Site "Hengshui"]
[Date "2019.05.15"]
[Round "6.15"]
[White "Koneru, Humpy"]
[Black "Paehtz, Elisabeth"]
[Result "1/2-1/2"]
[ECO "A40"]
[WhiteElo "2553"]
[BlackElo "2470"]
[Annotator "RC"]
[PlyCount "65"]
[EventDate "2019.05.14"]
[EventType "rapid"]
[EventCountry "CHN"]
[SourceTitle "playchess.com"]
[Source "ChessBase"]
[SourceQuality "1"]
[TimeControl "900+10"]

1. d4 {[%emt 0:00:00]} e6 {[%emt 0:00:00]} 2. c4 {[%emt 0:00:00]} b6 {[%emt 0:00:00]} 3. Nf3 {[%emt 0:00:33]} Bb7 {[%emt 0:00:00]} 4. g3 {[%emt 0:00:19]} Bb4+ {[%emt 0:00:00]} 5. Nbd2 {[%emt 0:00:26]} Bxf3 {[%emt 0:00:38]} 6. exf3 {[%emt 0:00:06]} Nf6 {[%emt 0:00:29]} 7. a3 {[%emt 0:02:04]} Be7 {[%emt 0:00:02]} 8. Bg2 {[%emt 0:01:13]} Nc6 {[%emt 0:00:02]} 9. f4 {[%emt 0:01:06]} Nxd4 {[%emt 0:00:28]} 10. Bxa8 {[%emt 0:00:26]} Qxa8 {[%emt 0:00:02]} 11. O-O {[%emt 0:00:29]} c5 {[%emt 0:00:15]} 12. f3 {[%emt 0:01:40]} h5 {[%emt 0:00:44]} 13. Nb3 {[%emt 0:00:56]} Nf5 {[%emt 0:00:14]} 14. Qe2 {[%emt 0:00:19]} a5 {[%emt 0:02:05]} 15. a4 {[%emt 0:01:53]} g6 {[%emt 0:00:22]} 16. Bd2 {[%emt 0:00:07]} Qa6 {[%emt 0:02:26]} 17. Bc3 {[%emt 0:01:21]} d5 {[%emt 0:00:07]} 18. g4 {[%emt 0:00:43]} hxg4 {[%emt 0:00:55]} 19. fxg4 {[%emt 0:00:01]} Qxc4 {[%emt 0:00:01]} 20. Qxc4 {[%emt 0:00:45]} dxc4 {[%emt 0:00:01]} 21. gxf5 {[%emt 0:01:04]} cxb3 {[%emt 0:00:02]} 22. fxe6 {[%emt 0:00:04]} fxe6 {[%emt 0:00:01]} 23. Rf3 {[%emt 0:00:14]} Rh4 {[%emt 0:02:37]} 24. Be5 {[%emt 0:00:46]} c4 {[%emt 0:00:55]} 25. Rc3 {[%emt 0:01:25]} Bc5+ {[%emt 0:01:10]} 26. Kg2 {[%emt 0:00:03]} Nd5 {[%emt 0:00:01]} 27. Rxc4 {[%emt 0:00:33]} Ne3+ {[%emt 0:00:17]} 28. Kg3 {[%emt 0:00:01]} Nf5+ {[%emt 0:00:37]} 29. Kg2 {[%emt 0:00:05]} Ne3+ {[%emt 0:00:01]} 30. Kg3 {[%emt 0:00:02]} Nf5+ {[%emt 0:00:00]} 31. Kg2 {[%emt 0:00:39]} Ne3+ {[%emt 0:00:46]} 32. Kg3 {[%emt 0:00:01]} Nf5+ {[%emt 0:00:01]} 33. Kg2 {[%emt 0:00:01]} 1/2-1/2

[Event "IMSA Rapid Women 2019"]
[Site "Hengshui"]
[Date "2019.05.15"]
[Round "8.16"]
[White "Koneru, Humpy"]
[Black "Krush, Irina"]
[Result "0-1"]
[ECO "D25"]
[WhiteElo "2553"]
[BlackElo "2422"]
[Annotator "RC"]
[PlyCount "80"]
[EventDate "2019.05.14"]
[EventType "rapid"]
[EventCountry "CHN"]
[SourceTitle "playchess.com"]
[Source "ChessBase"]
[SourceQuality "1"]
[TimeControl "900+10"]

1. d4 {[%emt 0:00:00]} d5 {[%emt 0:00:00]} 2. c4 {[%emt 0:00:00]} dxc4 {[%emt 0:00:00]} 3. Nf3 {[%emt 0:00:02]} Nf6 {[%emt 0:00:11]} 4. e3 {[%emt 0:00:03]} a6 {[%emt 0:00:04]} 5. Bxc4 {[%emt 0:00:08]} b5 {[%emt 0:00:05]} 6. Be2 {[%emt 0:00:23]} Bb7 {[%emt 0:00:04]} 7. a4 {[%emt 0:00:09]} b4 {[%emt 0:00:07]} 8. O-O {[%emt 0:00:50]} e6 {[%emt 0:00:05]} 9. Nbd2 {[%emt 0:00:14]} Nbd7 {[%emt 0:00:07]} 10. b3 {[%emt 0:01:42]} c5 {[%emt 0:00:05]} 11. Bb2 {[%emt 0:00:06]} Be7 {[%emt 0:00:04]} 12. Rc1 {[%emt 0:00:49]} O-O {[%emt 0:00:19]} 13. Nc4 {[%emt 0:00:31]} Qc7 14. dxc5 {[%emt 0:01:35]} Rfd8 {[%emt 0:03:42]} 15. c6 {[%emt 0:01:12]} Bxc6 {[%emt 0:00:19]} 16. Nd4 {[%emt 0:02:24]} Nc5 {[%emt 0:00:13]} 17. Bf3 {[%emt 0:00:53]} Bxf3 {[%emt 0:03:18]} 18. Qxf3 {[%emt 0:00:02]} Nd5 {[%emt 0:00:03]} 19. Qg3 {[%emt 0:02:40]} Qxg3 {[%emt 0:01:16]} 20. hxg3 {[%emt 0:00:01]} Bf6 {[%emt 0:02:02]} 21. Rb1 {[%emt 0:03:09]} Rac8 {[%emt 0:01:03]} 22. Na5 {[%emt 0:00:35]} Nd3 {[%emt 0:00:55]} 23. Ba1 {[%emt 0:00:33]} Bxd4 {[%emt 0:00:46]} 24. Bxd4 {[%emt 0:00:24]} e5 {[%emt 0:00:25]} 25. Rbd1 {[%emt 0:00:22]} Nc3 {[%emt 0:01:19]} 26. Rxd3 {[%emt 0:00:10]} Ne2+ {[%emt 0:00:02]} 27. Kh2 {[%emt 0:00:04]} Rd6 {[%emt 0:00:01]} 28. Kh3 {[%emt 0:00:15]} f5 {[%emt 0:00:02]} 29. Kh4 {[%emt 0:00:10]} exd4 {[%emt 0:00:39]} 30. exd4 {[%emt 0:00:08]} Re8 {[%emt 0:01:56]} 31. Re3 {[%emt 0:00:15]} Rh6+ {[%emt 0:00:24]} 32. Kg5 {[%emt 0:00:02]} Rg6+ {[%emt 0:00:04]} 33. Kh4 {[%emt 0:00:07]} Rg4+ {[%emt 0:00:33]} 34. Kh3 {[%emt 0:00:06]} Rxe3 {[%emt 0:00:04]} 35. fxe3 {[%emt 0:00:03]} Rxg3+ {[%emt 0:00:10]} 36. Kh2 {[%emt 0:00:07]} Rxe3 {[%emt 0:00:02]} 37. Re1 {[%emt 0:00:37]} f4 {[%emt 0:00:07]} 38. Nc4 {[%emt 0:00:05]} Re6 {[%emt 0:00:08]} 39. Kh3 {[%emt 0:00:22]} f3 {[%emt 0:00:23]} 40. Rf1 {[%emt 0:00:09]} Rh6+ {[%emt 0:00:13]} 0-1

[Event "IMSA Rapid Women 2019"]
[Site "Hengshui"]
[Date "2019.05.16"]
[Round "10.9"]
[White "Krush, Irina"]
[Black "Kosteniuk, Alexandra"]
[Result "0-1"]
[ECO "A22"]
[WhiteElo "2422"]
[BlackElo "2546"]
[Annotator "RC"]
[PlyCount "128"]
[EventDate "2019.05.14"]
[EventType "rapid"]
[EventCountry "CHN"]
[SourceTitle "playchess.com"]
[Source "ChessBase"]
[SourceQuality "1"]
[TimeControl "900+10"]

1. c4 {[%emt 0:00:00]} e5 {[%emt 0:00:00]} 2. Nc3 {[%emt 0:00:06]} Nf6 {[%emt 0:00:00]} 3. g3 {[%emt 0:00:05]} d5 {[%emt 0:00:00]} 4. cxd5 {[%emt 0:00:04]} Nxd5 {[%emt 0:00:00]} 5. Bg2 {[%emt 0:00:02]} Nb6 {[%emt 0:00:01]} 6. Nf3 {[%emt 0:00:12]} Nc6 {[%emt 0:00:02]} 7. d3 {[%emt 0:00:12]} Be7 {[%emt 0:00:02]} 8. a3 {[%emt 0:00:06]} Be6 {[%emt 0:00:10]} 9. O-O {[%emt 0:00:09]} O-O {[%emt 0:00:03]} 10. Be3 {[%emt 0:00:06]} a5 {[%emt 0:00:26]} 11. Rc1 {[%emt 0:00:24]} Nd5 {[%emt 0:00:49]} 12. Nxd5 {[%emt 0:00:17]} Bxd5 {[%emt 0:00:02]} 13. Nd2 {[%emt 0:00:17]} Bxg2 {[%emt 0:00:29]} 14. Kxg2 {[%emt 0:00:02]} a4 {[%emt 0:00:21]} 15. Qc2 {[%emt 0:00:47]} f5 {[%emt 0:00:42]} 16. Qc4+ {[%emt 0:01:28]} Kh8 {[%emt 0:00:06]} 17. f3 {[%emt 0:01:19]} Bf6 {[%emt 0:01:09]} 18. Qb5 {[%emt 0:01:18]} Qc8 {[%emt 0:00:14]} 19. Nc4 {[%emt 0:01:24]} Re8 {[%emt 0:00:12]} 20. Rc2 {[%emt 0:00:34]} Re6 {[%emt 0:01:27]} 21. Rb1 {[%emt 0:00:38]} f4 {[%emt 0:00:56]} 22. Bf2 {[%emt 0:00:22]} Nd4 {[%emt 0:00:05]} 23. Bxd4 {[%emt 0:00:13]} exd4 {[%emt 0:00:01]} 24. gxf4 {[%emt 0:01:08]} c6 {[%emt 0:00:17]} 25. Qh5 {[%emt 0:01:03]} Qc7 {[%emt 0:00:06]} 26. f5 {[%emt 0:01:05]} Re7 {[%emt 0:00:01]} 27. f4 {[%emt 0:01:30]} Qxf4 {[%emt 0:00:04]} 28. Rf1 {[%emt 0:00:07]} Qg5+ {[%emt 0:02:21]} 29. Qxg5 {[%emt 0:00:03]} Bxg5 {[%emt 0:00:01]} 30. Nd6 {[%emt 0:00:17]} Be3 {[%emt 0:00:47]} 31. Ne4 {[%emt 0:00:14]} Ra5 {[%emt 0:00:05]} 32. Rc5 {[%emt 0:01:01]} Rxc5 {[%emt 0:02:09]} 33. Nxc5 {[%emt 0:00:02]} Re5 {[%emt 0:02:02]} 34. Nxb7 {[%emt 0:00:13]} Bg5 {[%emt 0:00:39]} 35. Nd6 {[%emt 0:01:22]} Rxe2+ {[%emt 0:00:01]} 36. Rf2 {[%emt 0:00:27]} Rxf2+ {[%emt 0:00:02]} 37. Kxf2 {[%emt 0:00:02]} Bf4 {[%emt 0:00:01]} 38. Nc4 {[%emt 0:00:33]} Bxh2 {[%emt 0:01:58]} 39. Nb6 {[%emt 0:00:01]} Kg8 {[%emt 0:00:04]} 40. Nxa4 {[%emt 0:00:06]} Kf7 {[%emt 0:00:01]} 41. Kf3 {[%emt 0:00:18]} h5 {[%emt 0:00:25]} 42. Nc5 {[%emt 0:00:07]} Ke7 {[%emt 0:00:04]} 43. Ne6 {[%emt 0:00:55]} Be5 {[%emt 0:00:32]} 44. Ke4 {[%emt 0:00:13]} Kd6 {[%emt 0:00:09]} 45. b4 {[%emt 0:00:17]} h4 {[%emt 0:00:11]} 46. Ng5 {[%emt 0:00:06]} Bf6 {[%emt 0:00:18]} 47. Nh3 {[%emt 0:00:15]} Kc7 {[%emt 0:00:18]} 48. a4 {[%emt 0:00:26]} Be7 {[%emt 0:00:05]} 49. Kxd4 {[%emt 0:00:08]} Bxb4 {[%emt 0:00:01]} 50. Ke4 {[%emt 0:00:28]} Kb6 {[%emt 0:00:13]} 51. Ng5 {[%emt 0:00:10]} Be7 {[%emt 0:00:08]} 52. Ne6 {[%emt 0:00:11]} Bf6 {[%emt 0:00:02]} 53. Kf4 {[%emt 0:00:25]} Ka5 {[%emt 0:00:03]} 54. Nc5 {[%emt 0:00:08]} Kb4 {[%emt 0:00:26]} 55. Ne4 {[%emt 0:00:01]} Bd8 {[%emt 0:00:13]} 56. d4 {[%emt 0:00:22]} Kc4 {[%emt 0:00:05]} 57. Kg4 {[%emt 0:00:21]} Kxd4 {[%emt 0:00:11]} 58. Nd6 {[%emt 0:00:05]} c5 {[%emt 0:00:21]} 59. a5 {[%emt 0:00:19]} Bxa5 {[%emt 0:00:27]} 60. Kxh4 {[%emt 0:00:03]} c4 {[%emt 0:00:22]} 61. Kg5 {[%emt 0:00:07]} c3 {[%emt 0:00:09]} 62. Nb5+ {[%emt 0:00:05]} Kc4 {[%emt 0:00:13]} 63. Na3+ {[%emt 0:00:20]} Kb3 {[%emt 0:00:01]} 64. Nb5 {[%emt 0:00:10]} Bd8+ {[%emt 0:00:04]} 0-1

[Event "IMSA Rapid Women 2019"]
[Site "Hengshui"]
[Date "2019.05.16"]
[Round "10.10"]
[White "Tan, Zhongyi"]
[Black "Muzychuk, Mariya"]
[Result "1/2-1/2"]
[ECO "A35"]
[WhiteElo "2513"]
[BlackElo "2563"]
[Annotator "ChessBase"]
[PlyCount "67"]
[EventDate "2019.05.14"]
[EventType "rapid"]
[EventCountry "CHN"]
[SourceTitle "playchess.com"]
[Source "ChessBase"]
[SourceQuality "1"]
[TimeControl "900+10"]

1. c4 {[%emt 0:00:00]} c5 {[%emt 0:00:00]} 2. Nc3 {[%emt 0:00:00]} Nc6 {[%emt 0:00:00]} 3. Nf3 {[%emt 0:00:01]} g6 {[%emt 0:00:02]} 4. e3 {[%emt 0:00:04]} Nf6 {[%emt 0:00:03]} 5. d4 {[%emt 0:00:01]} cxd4 {[%emt 0:00:01]} 6. exd4 {[%emt 0:00:02]} d5 {[%emt 0:00:05]} 7. cxd5 {[%emt 0:00:02]} Nxd5 {[%emt 0:00:04]} 8. Qb3 {[%emt 0:00:02]} e6 {[%emt 0:00:14]} 9. Bb5 {[%emt 0:00:34]} Bg7 {[%emt 0:00:15]} 10. Qa3 {[%emt 0:02:20]} Qe7 {[%emt 0:01:12]} 11. Qxe7+ {[%emt 0:01:58]} Kxe7 {[%emt 0:00:07]} 12. Nxd5+ {[%emt 0:01:07]} exd5 {[%emt 0:00:01]} 13. Bg5+ {[%emt 0:00:19]} f6 {[%emt 0:01:02]} 14. Bxc6 {[%emt 0:01:31]} bxc6 {[%emt 0:00:27]} 15. Bd2 {[%emt 0:00:01]} Bg4 {[%emt 0:00:53]} 16. Rc1 {[%emt 0:00:15]} Bxf3 {[%emt 0:00:30]} 17. gxf3 {[%emt 0:00:02]} Kd7 {[%emt 0:00:22]} 18. Ke2 {[%emt 0:00:03]} f5 {[%emt 0:02:12]} 19. Kd3 {[%emt 0:00:03]} Rhb8 {[%emt 0:00:46]} 20. Rc2 {[%emt 0:00:35]} a5 {[%emt 0:01:01]} 21. h4 {[%emt 0:00:10]} Bf6 {[%emt 0:00:42]} 22. Bg5 {[%emt 0:01:13]} Bg7 {[%emt 0:02:21]} 23. Bd2 {[%emt 0:00:22]} Bf6 {[%emt 0:00:10]} 24. h5 {[%emt 0:00:21]} g5 {[%emt 0:00:15]} 25. h6 {[%emt 0:00:02]} f4 {[%emt 0:00:32]} 26. Rhc1 {[%emt 0:00:49]} Ra6 {[%emt 0:00:53]} 27. b3 {[%emt 0:00:12]} Be7 {[%emt 0:00:50]} 28. Re1 {[%emt 0:00:23]} Bf6 {[%emt 0:00:31]} 29. Bc3 {[%emt 0:00:08]} a4 {[%emt 0:00:18]} 30. b4 {[%emt 0:00:13]} Raa8 {[%emt 0:00:59]} 31. Bd2 {[%emt 0:00:40]} Ra6 {[%emt 0:00:42]} 32. Bc3 {[%emt 0:00:34]} Raa8 {[%emt 0:00:16]} 33. Bd2 {[%emt 0:00:02]} Ra6 {[%emt 0:00:01]} 34. Bc3 {[%emt 0:00:02]} 1/2-1/2

[Event "IMSA Rapid Women 2019"]
[Site "Hengshui"]
[Date "2019.05.16"]
[Round "10.11"]
[White "Bodnaruk, Anastasia"]
[Black "Abdumalik, Zhansaya"]
[Result "1-0"]
[ECO "C88"]
[WhiteElo "2431"]
[BlackElo "2464"]
[Annotator "ChessBase"]
[PlyCount "91"]
[EventDate "2019.05.14"]
[EventType "rapid"]
[EventCountry "CHN"]
[SourceTitle "playchess.com"]
[Source "ChessBase"]
[SourceQuality "1"]
[TimeControl "900+10"]

1. e4 {[%emt 0:00:00]} e5 {[%emt 0:00:00]} 2. Nf3 {[%emt 0:00:00]} Nc6 {[%emt 0:00:00]} 3. Bb5 {[%emt 0:00:00]} a6 {[%emt 0:00:00]} 4. Ba4 {[%emt 0:00:00]} Nf6 {[%emt 0:00:00]} 5. O-O {[%emt 0:00:00]} Be7 {[%emt 0:00:04]} 6. Re1 {[%emt 0:00:01]} b5 {[%emt 0:00:04]} 7. Bb3 {[%emt 0:00:01]} O-O {[%emt 0:00:03]} 8. a4 {[%emt 0:00:06]} Bb7 {[%emt 0:00:08]} 9. c3 {[%emt 0:00:41]} d5 {[%emt 0:00:33]} 10. d4 {[%emt 0:02:17]} exd4 {[%emt 0:01:36]} 11. e5 {[%emt 0:00:01]} Ne4 {[%emt 0:00:06]} 12. cxd4 {[%emt 0:00:52]} Na5 {[%emt 0:00:49]} 13. Bc2 {[%emt 0:00:02]} f5 {[%emt 0:01:08]} 14. exf6 {[%emt 0:00:42]} Bxf6 {[%emt 0:00:07]} 15. Nc3 {[%emt 0:00:52]} b4 {[%emt 0:00:42]} 16. Ne2 {[%emt 0:04:23]} Qd7 {[%emt 0:00:08]} 17. Nf4 {[%emt 0:01:17]} Rae8 {[%emt 0:00:10]} 18. Nd3 {[%emt 0:01:12]} Nc6 {[%emt 0:01:59]} 19. Nde5 {[%emt 0:00:45]} Qd8 {[%emt 0:02:14]} 20. Bf4 {[%emt 0:01:21]} Bxe5 {[%emt 0:01:17]} 21. Bxe5 {[%emt 0:00:02]} Nxe5 {[%emt 0:00:10]} 22. Nxe5 {[%emt 0:01:48]} Qh4 {[%emt 0:01:51]} 23. f3 {[%emt 0:01:04]} Nd6 {[%emt 0:01:53]} 24. g3 {[%emt 0:00:11]} Qh3 {[%emt 0:00:34]} 25. b3 {[%emt 0:00:48]} Bc8 {[%emt 0:00:33]} 26. Bd3 {[%emt 0:00:19]} Nf7 {[%emt 0:01:17]} 27. Rc1 {[%emt 0:00:23]} Ng5 {[%emt 0:00:34]} 28. f4 {[%emt 0:00:02]} Ne4 {[%emt 0:00:24]} 29. Bxe4 {[%emt 0:00:10]} dxe4 {[%emt 0:00:01]} 30. Rxc7 {[%emt 0:00:14]} Bf5 {[%emt 0:00:29]} 31. Qe2 {[%emt 0:00:09]} e3 {[%emt 0:00:20]} 32. Qxe3 {[%emt 0:00:08]} Be6 {[%emt 0:00:03]} 33. Qe4 {[%emt 0:00:09]} Bxb3 {[%emt 0:00:32]} 34. Qb7 {[%emt 0:00:17]} Rd8 {[%emt 0:00:14]} 35. Rxg7+ {[%emt 0:00:14]} Kh8 {[%emt 0:00:01]} 36. Rd7 {[%emt 0:00:10]} Rxd7 {[%emt 0:00:29]} 37. Nxd7 {[%emt 0:00:04]} Rd8 {[%emt 0:00:06]} 38. Nf6 {[%emt 0:00:13]} Qh6 {[%emt 0:00:21]} 39. Qe7 {[%emt 0:00:09]} Rf8 {[%emt 0:00:01]} 40. Nd7 {[%emt 0:00:07]} Rf7 {[%emt 0:00:18]} 41. Qe5+ {[%emt 0:00:14]} Kg8 {[%emt 0:00:01]} 42. Qe8+ {[%emt 0:00:09]} Kg7 {[%emt 0:00:02]} 43. Re7 {[%emt 0:00:17]} Qd6 {[%emt 0:00:24]} 44. Qf8+ {[%emt 0:00:08]} Kg6 {[%emt 0:00:02]} 45. Qg8+ {[%emt 0:00:12]} Kh6 {[%emt 0:00:11]} 46. Qg5# {[%emt 0:00:02]} 1-0